bitfinex-derivatives/quotes_SOLF0:USTF0_20251107
["timestamp","ask_amount","ask_price","bid_price","bid_amount"]
[1762508470581,0.04259894,154.54,154.5,3.06880865]
[1762508471385,0.04259894,154.54,154.52,5.8274]
[1762508471581,0.04259894,154.54,154.53,3.02]
[1762508473086,0.04259894,154.54,154.51,3.02]
[1762508474385,0.04259894,154.54,154.52,3.23]
[1762508474978,0.04259894,154.54,154.52,9.0574]
[1762508475184,0.04259894,154.54,154.53,3.23]
[1762508478188,3.08,154.61,154.53,3.23]
[1762508478189,3.08,154.61,154.56,3.23]
[1762508478984,8.9043,154.61,154.56,3.23]
[1762508479295,0.04761389,154.6,154.57,3.27933166]
[1762508480994,0.04761389,154.6,154.59,3.23]
[1762508481493,3.08,154.67,154.59,3.23]
[1762508481896,8.902,154.67,154.59,9.0547]
[1762508482097,8.902,154.67,154.59,3.23]
[1762508482393,3.12803651,154.65,154.61,0.04651889]
[1762508482587,3.08,154.64,154.61,0.04651889]
[1762508482787,5.87073651,154.65,154.61,3.27651889]
[1762508482992,0.04803651,154.65,154.61,3.27651889]
[1762508485388,3.08,154.64,154.61,0.04651889]
[1762508485797,3.12803651,154.65,154.61,3.27651889]
[1762508487589,3.12803651,154.65,154.61,0.04651889]
[1762508488302,8.9035,154.63,154.61,0.04651889]
[1762508488998,3.08,154.62,154.61,0.04651889]
[1762508489402,5.8247,154.6,154.54,3.23]
[1762508489591,3.08,154.6,154.54,9.0566]
[1762508489790,3.08,154.59,154.49,2.94517641]
[1762508490102,3.08,154.59,154.53,3.23]
[1762508490493,7.52880563,154.63,154.54,0.04875943]
[1762508490494,3.12796192,154.58,154.54,0.04875943]
[1762508490695,3.12796192,154.58,154.54,3.27875943]
[1762508491193,8.95346192,154.58,154.54,3.27875943]
[1762508491601,3.12796192,154.58,154.54,0.04875943]
[1762508492900,5.8262,154.56,154.54,0.04875943]
[1762508493093,3.08,154.55,154.54,0.04875943]
[1762508493797,0.04796192,154.58,154.46,3.23]
[1762508493798,3.08,154.53,154.46,3.23]
[1762508494603,5.8277,154.52,154.46,3.23]
[1762508494803,3.12791125,154.51,154.47,0.04710551]
[1762508495001,3.12791125,154.51,154.47,0.04407698]
[1762508495200,8.9089,154.49,154.47,0.04407698]
[1762508495603,3.08,154.48,154.47,0.04407698]
[1762508496295,5.8296,154.47,154.4,3.23]
[1762508496495,3.08,154.47,154.4,3.23]
[1762508496798,8.9101,154.46,154.4,3.23]
[1762508497404,8.9515174,154.45,154.41,0.04184591]
[1762508497604,3.08,154.44,154.41,0.04184591]
[1762508499308,3.08,154.42,154.41,0.04184591]
[1762508500207,8.9115,154.42,154.35,3.23]
[1762508500809,5.8304,154.45,154.36,2.98]
[1762508501106,0.04500545,154.42,154.39,3.02941642]
[1762508502906,3.04,154.49,154.39,3.02941642]
[1762508503103,3.04,154.49,154.39,2.98]
[1762508503799,3.04,154.49,154.42,2.98]
[1762508504003,0.04469655,154.46,154.42,3.0288954]
[1762508505216,3.09469655,154.46,154.42,3.0288954]
[1762508505406,0.04469655,154.46,154.42,3.0288954]
[1762508506314,0.04469655,154.46,154.42,8.8600954]
[1762508506611,0.04469655,154.46,154.43,3.16]
[1762508507411,0.04469655,154.46,154.44,3.16]
[1762508508602,3.09469655,154.46,154.42,0.0488954]
[1762508509405,3.09469655,154.46,154.42,3.2088954]
[1762508509406,0.04469655,154.46,154.42,3.2088954]
[1762508511117,0.04469655,154.46,154.43,3.16]
[1762508512015,3.09469655,154.46,154.43,3.16]
[1762508513812,3.09469655,154.46,154.42,0.0488954]
[1762508514917,3.09469655,154.46,154.37,3.16]
[1762508514918,3.05,154.43,154.37,3.16]
[1762508515911,3.05,154.43,154.38,0.04558038]
[1762508516216,0.04436921,154.42,154.38,9.03838038]
[1762508516419,0.04436921,154.42,154.39,3.16]
[1762508517618,3.09436921,154.42,154.38,3.20558038]
[1762508517816,3.05,154.39,154.33,8.9947]
[1762508518712,3.05,154.42,154.35,3.16]
[1762508518912,4.43023111,154.43,154.37,0.04310006]
[1762508518913,3.05,154.39,154.37,0.04310006]
[1762508519522,3.05,154.38,154.37,0.04310006]
[1762508520313,5.8326,154.39,154.37,0.04310006]
[1762508520510,3.05,154.38,154.37,0.04310006]
[1762508520714,3.05,154.36,154.27,3.16]
[1762508520919,3.05,154.36,154.27,8.9967]
[1762508521120,3.05,154.36,154.27,3.16]
[1762508521322,5.835,154.33,154.27,3.16]
[1762508521523,5.835,154.33,154.24,8.998]
[1762508521524,3.05,154.33,154.24,8.998]
[1762508521725,0.04746229,154.3,154.24,8.998]
[1762508521916,0.04746229,154.3,154.25,5.8376]
[1762508522228,3.09746229,154.3,154.21,3.16]
[1762508522518,0.04407511,154.27,154.21,3.16]
[1762508524113,3.09407511,154.27,154.16,3.16]
[1762508524318,0.04891154,154.23,154.18,5.8402]
[1762508524626,0.04891154,154.23,154.19,3.16]
[1762508525029,0.04891154,154.23,154.19,8.9998]
[1762508525221,0.04891154,154.23,154.2,3.16]
[1762508525522,0.04891154,154.23,154.22,3.16]
[1762508525726,0.04875782,154.24,154.22,3.16]
[1762508526029,0.04875782,154.24,154.22,8.9986]
[1762508526331,0.04875782,154.24,154.23,3.16]
[1762508527321,0.04875782,154.24,154.21,3.16]
[1762508528227,0.04875782,154.24,154.23,3.16]
[1762508530124,0.04875782,154.24,154.21,8.9991]
[1762508530318,0.04875782,154.24,154.22,3.16]
[1762508530719,0.04875782,154.24,154.2,3.16]
[1762508531127,3.09875782,154.24,154.2,3.16]
[1762508531326,0.04875782,154.24,154.2,3.16]
[1762508532629,0.04875782,154.24,154.17,3.16]
[1762508532630,3.09875782,154.24,154.17,3.16]
[1762508533131,3.09875782,154.24,154.17,9.0007]
[1762508533725,3.09875782,154.24,154.18,5.8403]
[1762508534430,3.09875782,154.24,154.17,3.16]
[1762508536326,3.09875782,154.24,154.16,5.841]
[1762508536725,3.09875782,154.24,154.17,5.8405]
[1762508536925,3.06456749,154.22,154.17,8.8905]
[1762508537928,8.90376749,154.22,154.14,3.05]
[1762508538126,8.90376749,154.22,154.12,62.0]
[1762508538127,3.06456749,154.22,154.12,62.0]
[1762508538327,3.02,154.18,154.1,3.05]
[1762508538536,0.04714319,154.16,154.1,3.05]
[1762508538831,0.04714319,154.16,154.11,3.05]
[1762508539027,0.04714319,154.16,154.13,5.8422]
[1762508539234,0.04714319,154.16,154.13,8.8922]
[1762508539422,0.04714319,154.16,154.14,3.05]
[1762508539628,0.04714319,154.16,154.14,8.8918]
[1762508539835,0.04714319,154.16,154.15,3.05]
[1762508540032,4.73450266,154.24,154.15,3.05]
[1762508540235,3.02,154.25,154.18,5.8401]
[1762508540626,3.02,154.23,154.15,3.05]
[1762508541031,3.02,154.23,154.17,5.8407]
[1762508541229,25.27452906,154.29,154.17,5.8407]
[1762508541230,3.0616426,154.21,154.17,0.04265875]
[1762508541426,7.49381793,154.21,154.1,8.8933]
[1762508541625,3.02,154.19,154.1,3.05]
[1762508542324,3.02,154.18,154.1,8.8932]
[1762508542736,3.06884957,154.16,154.1,8.8932]
[1762508543233,8.91024957,154.16,154.1,8.8932]
[1762508544025,3.06884957,154.16,154.1,8.8932]
[1762508544434,0.04884957,154.16,154.12,3.05]
[1762508544730,3.06524795,154.16,154.12,3.05]
[1762508545331,3.06524795,154.16,154.09,5.8436]
[1762508545526,3.06524795,154.16,154.09,8.8936]
[1762508546233,5.8418,154.15,154.09,3.05]
[1762508546531,3.02,154.15,154.09,3.05]
[1762508547234,3.02,154.15,154.09,8.8936]
[1762508547932,0.04524795,154.16,154.11,3.05]
[1762508548139,3.02,154.2,154.11,3.05]
[1762508548140,0.04390121,154.15,154.11,3.05]
[1762508548334,3.06390121,154.15,154.08,7.48023111]
[1762508548638,3.06390121,154.15,154.08,69.48023111]
[1762508548836,8.90560121,154.15,154.09,5.8437]
[1762508549240,3.06390121,154.15,154.08,3.05]
[1762508549440,3.06390121,154.15,154.1,3.05]
[1762508549742,5.84452906,154.25,154.1,3.05]
[1762508549743,0.04643634,154.14,154.1,3.05]
[1762508549937,0.0491657,154.14,154.1,3.05]
[1762508550134,0.0491657,154.14,154.13,3.05]
[1762508550435,3.02,154.27,154.14,3.05]
[1762508550637,5.8375,154.26,154.19,8.8899]
[1762508551146,3.02,154.27,154.19,3.05]
[1762508551747,3.06195221,154.25,154.21,0.04710671]
[1762508551930,3.06873883,154.25,154.21,0.0466249]
[1762508552837,3.06873883,154.25,154.21,3.0966249]
[1762508553433,3.06873883,154.25,154.21,0.0466249]
[1762508554440,0.04873883,154.25,154.21,3.0966249]
[1762508554744,0.04873883,154.25,154.22,3.05]
[1762508555632,0.04873883,154.25,154.23,3.05]
[1762508556639,0.04873883,154.25,154.21,3.0966249]
[1762508556839,3.06873883,154.25,154.21,3.0966249]
[1762508557739,3.06873883,154.25,154.21,0.0466249]
[1762508557936,0.04873883,154.25,154.21,3.0966249]
[1762508559547,3.18873883,154.25,154.21,3.0966249]
[1762508559940,3.14,154.24,154.21,0.0466249]
[1762508561835,3.14,154.22,154.16,5.841]
[1762508562041,3.14,154.22,154.14,8.9817]
[1762508562348,5.8398,154.2,154.14,3.14]
[1762508562849,5.88751972,154.19,154.14,3.14]
[1762508563345,9.02751972,154.19,154.14,3.14]
[1762508564246,5.88751972,154.19,154.14,3.14]
[1762508564446,13.7075425,154.18,154.14,3.14]
[1762508564646,8.9206,154.18,154.14,3.14]
[1762508565246,5.8406,154.18,154.11,3.18]
[1762508565544,0.04475116,154.16,154.11,3.18]
[1762508566651,8.96625116,154.16,154.11,3.18]
[1762508566851,3.08,154.15,154.08,13.45423111]
[1762508567453,8.9217,154.15,154.08,9.024]
[1762508567851,5.8422,154.14,154.08,9.024]
[1762508568149,3.12382379,154.13,154.08,3.18]
[1762508568550,3.08,154.12,154.05,3.18]
[1762508569253,0.04501897,154.1,154.05,3.18]
[1762508569750,0.04501897,154.1,154.06,3.18]
[1762508569951,3.12501897,154.1,154.06,3.18]
[1762508570149,3.12501897,154.1,154.03,3.18]
[1762508570347,3.12501897,154.1,154.04,3.18]
[1762508571250,8.96861897,154.1,154.04,3.18]
[1762508571450,3.12501897,154.1,154.04,3.18]
[1762508572257,0.04501897,154.1,154.08,3.18]
[1762508572451,0.04722277,154.11,154.08,3.18]
[1762508574055,0.04722277,154.11,154.08,9.024]
[1762508574250,0.04722277,154.11,154.09,3.18]
[1762508576655,0.04722277,154.11,154.1,3.18]
[1762508576851,3.08,154.18,154.1,3.18]
[1762508577051,3.08,154.18,154.11,3.18]
[1762508577252,3.08,154.21,154.11,3.18]
[1762508577958,3.08,154.17,154.14,0.04619925]
[1762508578159,3.08,154.17,154.14,0.0430987]
[1762508580253,0.04304365,154.18,154.14,3.2230987]
[1762508580959,3.12304365,154.18,154.14,0.0430987]
[1762508581660,3.08,154.16,154.14,0.0430987]
[1762508582052,8.9214,154.16,154.14,0.0430987]
[1762508582459,3.08,154.15,154.14,0.0430987]
[1762508582757,0.04304365,154.18,154.14,0.0430987]
[1762508582961,3.08,154.17,154.14,0.0430987]
[1762508583457,0.04304365,154.18,154.14,3.2230987]
[1762508583654,3.12304365,154.18,154.14,3.2230987]
[1762508583851,3.12304365,154.18,154.14,0.0430987]
[1762508584054,3.12304365,154.18,154.14,3.2230987]
[1762508584257,0.04304365,154.18,154.14,3.2230987]
[1762508585062,3.12304365,154.18,154.14,0.0430987]
[1762508585858,8.96364365,154.18,154.14,3.2230987]
[1762508586052,0.04304365,154.18,154.14,0.0430987]
[1762508586357,3.12304365,154.18,154.14,0.0430987]
[1762508587756,5.8413,154.16,154.14,0.0430987]
[1762508587959,3.12304365,154.18,154.14,0.0430987]
[1762508588958,8.96374365,154.18,154.14,0.0430987]
[1762508590964,3.12304365,154.18,154.14,0.0430987]
[1762508591663,8.9213,154.16,154.14,0.0430987]
[1762508592057,3.08,154.16,154.14,0.0430987]
[1762508592462,0.04304365,154.18,154.14,3.2230987]
[1762508595664,0.04304365,154.18,154.17,3.27]
[1762508596065,3.24,154.25,154.19,9.1099]
[1762508596856,3.24,154.23,154.19,3.27]
[1762508597255,3.28107491,154.23,154.19,3.31138598]
[1762508597459,9.11967491,154.23,154.19,3.31138598]
[1762508597659,0.04107491,154.23,154.19,3.31138598]
[1762508598360,0.04107491,154.23,154.19,9.15118598]
[1762508598557,0.04107491,154.23,154.2,3.27]
[1762508599157,0.04107491,154.23,154.21,3.27]
[1762508599768,0.04107491,154.23,154.22,3.27]
[1762508601270,3.24,154.32,154.23,3.27]
[1762508601770,5.8357,154.31,154.25,9.1077]
[1762508602167,0.04167155,154.3,154.26,3.31833489]
[1762508602359,0.04167155,154.3,154.26,9.15563489]
[1762508602562,0.04167155,154.3,154.27,3.27]
[1762508603065,0.04167155,154.3,154.29,3.27]
[1762508604073,0.04167155,154.3,154.27,3.27]
[1762508604659,3.28167155,154.3,154.26,0.04833489]
[1762508604865,3.28167155,154.3,154.26,3.31833489]
[1762508605063,3.28167155,154.3,154.26,0.04833489]
[1762508605271,3.24,154.28,154.26,0.04833489]
[1762508608768,3.28167155,154.3,154.26,0.04833489]
[1762508609764,9.11767155,154.3,154.26,0.04833489]
[1762508609967,3.24,154.29,154.26,0.04833489]
[1762508610374,9.0764,154.29,154.26,0.04833489]
[1762508610676,3.24,154.29,154.26,0.04833489]
[1762508615079,9.0764,154.29,154.26,0.04833489]
[1762508615774,3.24,154.28,154.26,0.04833489]
[1762508617280,9.0767,154.28,154.26,0.04833489]
[1762508617486,3.24,154.27,154.19,3.27]
[1762508617882,3.24,154.23,154.19,3.27]
[1762508618091,3.24,154.29,154.19,3.27]
[1762508618585,3.24,154.25,154.22,0.04620942]
[1762508619886,2.98,154.23,154.22,0.04620942]
[1762508620283,5.8392,154.22,154.16,8.921]
[1762508620482,2.98,154.23,154.16,8.921]
[1762508621590,3.02403269,154.21,154.18,0.04763285]
[1762508621782,3.02398758,154.21,154.18,0.04745389]
[1762508622184,3.02398758,154.21,154.18,3.12745389]
[1762508622389,0.04398758,154.21,154.18,3.12745389]
[1762508622786,3.02398758,154.21,154.18,0.04745389]
[1762508623987,0.04398758,154.21,154.18,3.12745389]
[1762508624994,5.8377,154.26,154.2,3.2]
[1762508625690,3.22,154.29,154.22,3.2]
[1762508625889,7.6719428,154.32,154.22,3.2]
[1762508626191,0.04918213,154.27,154.24,3.24108818]
[1762508626386,0.04918213,154.27,154.25,9.0377]
[1762508626987,0.04918213,154.27,154.26,3.2]
[1762508627696,3.22,154.32,154.28,3.2]
[1762508628289,9.0543,154.35,154.29,3.2]
[1762508628787,0.04659972,154.34,154.3,3.24275407]
[1762508630985,3.26659972,154.34,154.3,3.24275407]
[1762508631495,0.04659972,154.34,154.31,3.2]
[1762508632098,0.04659972,154.34,154.32,3.2]
[1762508632692,0.04659972,154.34,154.3,3.24275407]
[1762508633097,0.04659972,154.34,154.3,9.07845407]
[1762508633296,0.04659972,154.34,154.31,3.2]
[1762508633894,3.26659972,154.34,154.3,0.04275407]
[1762508634499,5.8349,154.33,154.3,0.04275407]
[1762508634798,9.0549,154.33,154.3,0.04275407]
[1762508635190,9.0553,154.32,154.3,0.04275407]
[1762508635392,3.22,154.31,154.3,0.04275407]
[1762508635597,5.8353,154.32,154.3,0.04275407]
[1762508635798,9.0553,154.32,154.3,0.04275407]
[1762508635990,3.22,154.31,154.3,0.04275407]
[1762508636196,3.22,154.27,154.16,3.2]
[1762508637097,0.04649976,154.23,154.2,3.24512733]
[1762508637297,0.0414051,154.23,154.2,3.24493231]
[1762508640300,4.4627968,154.32,154.23,3.2]
[1762508640499,3.22,154.3,154.23,3.2]
[1762508640705,3.22,154.28,154.19,3.2]
[1762508641009,3.22,154.27,154.19,3.2]
[1762508641205,5.8376,154.26,154.2,3.2]
[1762508641410,0.0454474,154.25,154.21,3.24334352]
[1762508641714,3.22,154.31,154.24,3.2]
[1762508642009,15.10140604,154.32,154.24,3.2]
[1762508642010,5.8354,154.32,154.24,3.2]
[1762508642805,0.04898955,154.3,154.27,3.2]
[1762508643817,5.84452906,154.42,154.33,5.8347]
[1762508644014,3.22,154.41,154.34,3.2]
[1762508644610,4.46146397,154.44,154.34,3.2]
[1762508644807,0.04216297,154.41,154.38,3.2]
[1762508645622,0.04216297,154.41,154.38,7.64008543]
[1762508645822,0.04216297,154.41,154.4,3.2]
[1762508646024,3.22,154.49,154.4,3.2]
[1762508646422,3.22,154.49,154.42,9.0311]
[1762508646915,3.22,154.49,154.43,3.2]
[1762508647119,0.04779932,154.48,154.44,3.24473585]
[1762508647324,0.04779932,154.48,154.44,3.24358684]
[1762508647512,0.04779932,154.48,154.44,9.07388684]
[1762508647720,0.04779932,154.48,154.45,3.2]
[1762508648325,0.04779932,154.48,154.47,3.2]
[1762508649630,0.04779932,154.48,154.45,3.2]
[1762508649820,0.04779932,154.48,154.44,0.04358684]
[1762508650021,0.04779932,154.48,154.44,3.24358684]
[1762508650327,3.26779932,154.48,154.44,0.04358684]
[1762508651425,3.22,154.47,154.44,0.04358684]
[1762508653026,9.0498,154.47,154.44,0.04358684]
[1762508653721,3.22,154.46,154.44,0.04358684]
[1762508654625,3.18779932,154.48,154.44,0.04358684]
[1762508655427,4.48779932,154.48,154.44,0.04358684]
[1762508655727,3.14,154.46,154.44,0.04358684]
[1762508655928,3.14,154.43,154.37,3.16]
[1762508656930,3.14,154.43,154.39,3.16]
[1762508656931,0.04319911,154.42,154.39,3.16]
[1762508658923,3.18319911,154.42,154.38,0.04271102]
[1762508659323,0.04319911,154.42,154.38,3.20271102]
[1762508661931,0.04319911,154.42,154.39,3.16]
[1762508666631,3.18319911,154.42,154.38,0.04271102]
[1762508667029,0.04319911,154.42,154.38,3.20271102]
[1762508667433,0.04319911,154.42,154.38,0.04271102]
[1762508667434,3.18319911,154.42,154.38,0.04271102]
[1762508668533,9.01469911,154.42,154.38,0.04271102]
[1762508668837,3.18319911,154.42,154.38,0.04271102]
[1762508669738,3.18319911,154.42,154.38,3.20271102]
[1762508670132,3.18319911,154.42,154.39,3.16]
[1762508670133,0.04319911,154.42,154.39,3.16]
[1762508670440,3.14,154.46,154.42,3.16]
[1762508670733,3.14,154.46,154.41,4.44008543]
[1762508671335,0.0482818,154.45,154.42,0.04569193]
[1762508672535,0.0482818,154.45,154.42,3.20569193]
[1762508672934,0.0482818,154.45,154.42,0.04569193]
[1762508673336,3.1882818,154.45,154.42,0.04569193]
[1762508674338,9.0185818,154.45,154.42,0.04569193]
[1762508674546,3.14,154.44,154.42,0.04569193]
[1762508676144,3.14,154.43,154.42,0.04569193]
[1762508677548,8.9715,154.42,154.35,4.44008543]
[1762508677734,3.14,154.42,154.35,4.44008543]
[1762508677940,3.14,154.39,154.35,4.44008543]
[1762508678245,3.14,154.39,154.34,3.16]
[1762508678439,0.04944052,154.38,154.35,0.04121484]
[1762508678646,9.02244052,154.38,154.35,0.04121484]
[1762508678943,3.14,154.37,154.35,0.04121484]
[1762508679938,8.9733,154.37,154.35,0.04121484]
[1762508680142,3.14,154.37,154.35,0.04121484]
[1762508681444,0.04944052,154.38,154.35,0.04121484]
[1762508682744,3.07944052,154.38,154.35,0.04121484]
[1762508683753,0.04944052,154.38,154.35,9.09511484]
[1762508683944,0.04944052,154.38,154.36,3.22]
[1762508685054,0.04944052,154.38,154.36,9.0535]
[1762508686457,0.04944052,154.38,154.36,13.49358543]
[1762508687445,0.04944052,154.38,154.37,3.02]
[1762508694457,0.04944052,154.38,154.37,4.91012629]
[1762508698357,0.04944052,154.38,154.37,3.02]
[1762508699058,0.04944052,154.38,154.36,8.78695697]
[1762508699252,0.04944052,154.38,154.36,11.80695697]
[1762508699757,0.04944052,154.38,154.37,3.02]
[1762508702253,3.12944052,154.38,154.35,0.04121484]
[1762508702959,0.04944052,154.38,154.36,3.02]
[1762508704049,0.04944052,154.38,154.36,8.8535]
[1762508704658,3.12944052,154.38,154.35,2.99467181]
[1762508704954,4.42944052,154.38,154.35,0.04121484]
[1762508705153,4.42944052,154.38,154.29,3.02]
[1762508705154,3.08,154.36,154.29,3.02]
[1762508705363,3.08,154.33,154.29,8.8562]
[1762508705562,3.08,154.33,154.29,3.02]
[1762508706059,0.04097777,154.33,154.29,3.0688391]
[1762508706256,0.04097777,154.33,154.31,3.02]
[1762508706656,0.04097777,154.33,154.32,5.97345697]
[1762508707850,8.9124,154.4,154.33,3.02]
[1762508708158,3.08,154.4,154.33,3.02]
[1762508708363,3.08,154.38,154.29,3.02]
[1762508708863,0.04545475,154.35,154.32,3.0692307]
[1762508709952,3.12545475,154.35,154.32,3.0692307]
[1762508710154,3.12545475,154.35,154.32,0.0492307]
[1762508710558,0.04545475,154.35,154.32,3.0692307]
[1762508710760,0.04545475,154.35,154.33,8.8547]
[1762508710966,0.04545475,154.35,154.34,3.02]
[1762508711162,9.28178537,154.41,154.34,3.02]
[1762508711465,3.08,154.42,154.34,3.02]
[1762508711857,8.9115,154.42,154.34,3.02]
[1762508712056,0.04912165,154.4,154.36,0.04505905]
[1762508712259,3.12912165,154.4,154.36,0.04505905]
[1762508712465,3.12912165,154.4,154.36,3.06505905]
[1762508712971,3.12912165,154.4,154.36,0.04505905]
[1762508714166,3.08,154.38,154.36,0.04505905]
[1762508714971,3.00912165,154.4,154.36,0.04505905]
[1762508716275,2.96,154.38,154.36,0.04505905]
[1762508717070,8.793,154.38,154.36,0.04505905]
[1762508717269,2.96,154.37,154.36,0.04505905]
[1762508717472,2.96,154.34,154.29,5.8361]
[1762508717772,2.96,154.34,154.29,8.9361]
[1762508717960,8.7945,154.34,154.29,8.9361]
[1762508718167,2.96,154.33,154.29,8.9361]
[1762508718668,2.96,154.33,154.29,8.97808663]
[1762508718669,3.00846075,154.33,154.29,8.97808663]
[1762508719475,3.00846075,154.33,154.3,5.8359]
[1762508720670,3.00846075,154.33,154.29,3.14198663]
[1762508723083,0.04846075,154.33,154.29,3.14198663]
[1762508723281,2.96,154.41,154.29,4.44198663]
[1762508723585,2.96,154.41,154.3,3.1]
[1762508723782,8.792,154.41,154.34,3.1]
[1762508723983,2.96,154.39,154.3,3.1]
[1762508724194,8.7927,154.39,154.33,3.1]
[1762508724482,8.7927,154.39,154.28,7.54749242]
[1762508724483,3.00142254,154.38,154.34,3.14177393]
[1762508725280,2.96,154.37,154.34,0.04177393]
[1762508726286,0.04142254,154.38,154.34,3.14177393]
[1762508726878,0.04142254,154.38,154.36,5.8336]
[1762508727185,0.04142254,154.38,154.37,3.1]
[1762508729686,0.04142254,154.38,154.37,4.4]
[1762508729893,2.96,154.45,154.38,8.9326]
[1762508730288,2.96,154.45,154.38,3.1]
[1762508730893,0.0493931,154.43,154.4,0.04170554]
[1762508731797,0.0493931,154.43,154.4,8.97360554]
[1762508732000,0.0493931,154.43,154.41,3.1]
[1762508732705,0.0493931,154.43,154.41,8.9316]
[1762508734906,3.0093931,154.43,154.4,0.04170554]
[1762508735304,3.0093931,154.43,154.4,3.14170554]
[1762508735604,0.0493931,154.43,154.4,3.14170554]
[1762508736197,3.0093931,154.43,154.4,3.14170554]
[1762508736403,3.0093931,154.43,154.4,0.04170554]
[1762508736603,2.96,154.42,154.27,7.54749242]
[1762508736802,2.96,154.4,154.28,3.1]
[1762508736997,2.96,154.38,154.28,3.1]
[1762508737197,8.7934,154.37,154.3,5.8357]
[1762508737400,2.96,154.36,154.28,3.1]
[1762508737605,2.96,154.33,154.3,0.04158495]
[1762508737794,0.04627143,154.33,154.3,3.14384971]
[1762508739005,0.04627143,154.33,154.32,2.95]
[1762508740313,0.04627143,154.33,154.3,0.04384971]
[1762508740606,0.04627143,154.33,154.3,2.99384971]
[1762508741601,0.04627143,154.33,154.31,2.95]
[1762508742001,0.04627143,154.33,154.31,8.7853]
[1762508742202,0.04627143,154.33,154.32,2.95]
[1762508743906,3.03,154.41,154.34,2.95]
[1762508744905,0.04861751,154.39,154.36,3.22758566]
[1762508745107,0.04986324,154.39,154.36,3.22755865]
[1762508745412,0.04986324,154.39,154.38,9.0127]
[1762508745809,3.15,154.45,154.39,5.8322]
[1762508746112,3.15,154.45,154.38,3.18]
[1762508746703,5.8298,154.47,154.38,3.18]
[1762508746910,0.04392058,154.44,154.42,3.18]
[1762508747212,0.0498009,154.45,154.42,3.18]
[1762508749112,4.52347298,154.52,154.44,3.18]
[1762508749307,4.27672408,154.54,154.44,3.18]
[1762508749503,9.33258169,154.53,154.44,3.18]
[1762508749707,9.33258169,154.52,154.44,3.18]
[1762508749908,3.15,154.54,154.44,3.18]
[1762508750113,0.04926159,154.51,154.47,3.22537293]
[1762508751109,3.19926159,154.51,154.47,0.04537293]
[1762508751412,4.49926159,154.51,154.47,0.04537293]
[1762508751613,12.47625697,154.5,154.47,0.04537293]
[1762508751812,8.9789,154.49,154.47,0.04537293]
[1762508752011,3.15,154.48,154.47,0.04537293]
[1762508753918,3.15,154.5,154.47,0.04537293]
[1762508754103,3.15,154.49,154.47,0.04537293]
[1762508756011,0.04926159,154.51,154.47,3.22537293]
[1762508756210,3.19926159,154.51,154.47,3.22537293]
[1762508756405,3.19926159,154.51,154.47,0.04537293]
[1762508757012,3.15,154.49,154.47,0.04537293]
[1762508758111,0.04926159,154.51,154.47,0.04537293]
[1762508758310,3.19926159,154.51,154.47,0.04537293]
[1762508758917,3.19926159,154.51,154.47,9.05477293]
[1762508759316,0.04926159,154.51,154.48,3.18]
[1762508760008,3.19926159,154.51,154.47,0.04537293]
[1762508760610,9.02746159,154.51,154.47,0.04537293]
[1762508760816,3.15,154.5,154.47,0.04537293]
[1762508761318,3.15,154.49,154.47,0.04537293]
[1762508761906,3.15,154.48,154.47,0.04537293]
[1762508762310,3.15,154.48,154.4,3.18]
[1762508762608,3.15,154.5,154.44,3.18]
[1762508763319,0.04911845,154.49,154.46,3.18]
[1762508763624,0.0459647,154.49,154.46,3.18]
[1762508764521,0.0459647,154.49,154.47,9.0094]
[1762508764913,0.0459647,154.49,154.48,3.18]
[1762508766122,5.8264,154.56,154.5,9.0082]
[1762508767009,0.04770692,154.55,154.51,3.22570087]
[1762508767214,0.04770692,154.55,154.52,3.18]
[1762508769123,3.15,154.63,154.52,3.18]
[1762508769419,3.15,154.57,154.49,3.18]
[1762508769822,3.15,154.53,154.49,3.18]
[1762508770022,3.1986034,154.53,154.49,3.2249578]